Cogmind - Beta 17.1 @@@ ROGUE MODE // 2026.09.13 @ 17:11:45 Player: Figgis Result: Escaped! Performance ------------- Evolutions (9) 4500 Regions Visited (17) 3400 Robots Destroyed (115) 575 Value Destroyed (3643) 3643 Prototype IDs (35) 700 Alien Tech Used (2) 400 Bonus (3028) 3028 TOTAL SCORE: 16246 Bonus ------- Follower Combat Kills 28 Win 3000 Cogmind --------- Core Integrity 1154/1600 Matter 194/300 Energy 288/290 System Corruption 0% Temperature Warm (155) Movement Flying (22) Location To Epsilon Eridani Parts ------- > --- POWER (3) -------- Micro Antimatter Reactor Micro Antimatter Reactor Light Quantum Reactor > --- PROPULSION (9) --- Impulse Thruster Impulse Thruster Impulse Thruster Field Propulsion Array Cooled Impulse Thruster Cooled Q-thruster Experimental Q-thruster Experimental Q-thruster > --- UTILITY (10) ----- Advanced Cryofiber Web Advanced Weight Redist. System Long-range Sensor Array Advanced Signal Interpreter Transmission Jammer Cloaking Device Point Defense System > --- WEAPON (3) ------- (None) > --- INVENTORY (5) ---- Impulse Thruster Array Guided Micro-nuke Launcher Peak State ------------ > --- POWER ------------ Heavy Antimatter Reactor Micro Antimatter Reactor > --- PROPULSION ------- Field Propulsion Drive Impulse Thruster Q-thruster Q-thruster Q-thruster Q-thruster Q-thruster Cooled Q-thruster Experimental Q-thruster > --- UTILITY ---------- Advanced Weight Redist. System Long-range Sensor Array Advanced Signal Interpreter Long-range Terrain Scanner Transmission Jammer Experimental Reaction Control System Improved Cloaking Device Experimental Propulsion Shielding Experimental Thermal Shield Advanced Shield Generator > --- WEAPON ----------- Guided Micro-nuke Launcher Heavy Flail > --- INVENTORY -------- Q-thruster Q-thruster Stasis Canceller [Rating: 178] Favorites ----------- Power Heavy Ion Engine Engine Heavy Ion Engine Power Core Light Nuclear Core Reactor Micro Antimatter Reactor Propulsion Light Treads Treads Light Treads Flight Unit Biomechanical Wings Utility Large Storage Unit Device Improved Heat Sink Storage Large Storage Unit Processor Advanced Signal Interpreter Protection Hardened Light Armor Plating Weapon Heavy Assault Rifle Energy Gun Improved Medium Laser Energy Cannon Heavy Plasma Cannon Ballistic Gun Heavy Assault Rifle Launcher Grenade Launcher Special Weapon Molecular Deconstructor Impact Weapon Heavy Flail Piercing Weapon Lance Build | -11 -10 -10 -9 -9 -8 -7 -6 -5 -5 -5 -5 -4 -4 -3 -2 -2 -1 ------- Run | Yrd Mat Min Mat Min Mat Fac Fac Fac Upp Upp Zhi Pro Fac Res Res Tes Acc Slots Evolved 18 | . . . 2 . 2 2 2 2 . . . . 2 2 2 . 2 Power 2 | . . . . . . 1 . . . . . . . . . . 1 Propulsion 7 | . . . 1 . 1 . 1 1 . . . . 1 1 1 . . Utility 8 | . . . 1 . 1 1 . 1 . . . . 1 1 1 . 1 Weapon 1 | . . . . . . . 1 . . . . . . . . . . Parts Attached 167 | 5 4 6 18 2 18 12 26 10 1 2 4 2 8 5 7 12 25 Power 22 | . 1 2 1 . 2 3 2 2 . . 2 . . 1 . 2 4 Engine 10 | . 1 2 1 . . 3 1 2 . . . . . . . . . Core 3 | . . . . . 2 . 1 . . . . . . . . . . Reactor 9 | . . . . . . . . . . . 2 . . 1 . 2 4 Propulsion 57 | 2 . 3 5 . 9 2 13 2 . . . . . 2 6 2 11 Treads 27 | 2 . 3 5 . 9 2 6 . . . . . . . . . . Leg . | . . . . . . . . . . . . . . . . . . Wheel . | . . . . . . . . . . . . . . . . . . Hover . | . . . . . . . . . . . . . . . . . . Flight 30 | . . . . . . . 7 2 . . . . . 2 6 2 11 Utility 58 | 1 3 . 4 2 4 5 4 5 1 . 2 1 8 1 1 7 9 Device 34 | . 1 . 1 1 . . 2 5 . . 1 . 7 1 . 7 8 Storage 5 | 1 2 . . . 2 . . . . . . . . . . . . Processor 4 | . . . . . . . . . 1 . . 1 1 . 1 . . Hackware . | . . . . . . . . . . . . . . . . . . Protection 15 | . . . 3 1 2 5 2 . . . 1 . . . . . 1 Artifact . | . . . . . . . . . . . . . . . . . . Weapon 30 | 2 . 1 8 . 3 2 7 1 . 2 . 1 . 1 . 1 1 Energy Gun 10 | 1 . 1 4 . 1 2 1 . . . . . . . . . . Energy Cannon 5 | . . . 1 . 1 . 3 . . . . . . . . . . Ballistic Gun 8 | 1 . . 2 . 1 . 2 . . 2 . . . . . . . Ballistic Cannon . | . . . . . . . . . . . . . . . . . . Launcher 2 | . . . 1 . . . . . . . . . . . . 1 . Special Weapon 2 | . . . . . . . . 1 . . . 1 . . . . . Impact Weapon 1 | . . . . . . . . . . . . . . 1 . . . Slashing Weapon . | . . . . . . . . . . . . . . . . . . Piercing Weapon 2 | . . . . . . . 1 . . . . . . . . . 1 Special Melee Weapon . | . . . . . . . . . . . . . . . . . . Unidentified Prototypes 26 | . . . 3 . . . 3 2 . . 5 1 . . . 9 3 Parts Lost 55 | . . 2 6 . 2 6 3 7 . 2 . 2 . . 2 . 23 Power 8 | . . 1 . . 1 1 1 2 . . . . . . . . 2 Propulsion 19 | . . 1 3 . . 1 . 1 . 1 . 1 . . . . 11 Utility 22 | . . . 1 . 1 4 2 2 . 1 . 1 . . 1 . 9 Weapon 6 | . . . 2 . . . . 2 . . . . . . 1 . 1 Highest Loss Streak 14 | . . 2 4 . 1 3 3 4 . 2 . 2 . . 1 . 14 To Critical Strikes . | . . . . . . . . . . . . . . . . . . Average Backups 10 | 2 4 8 11 13 13 14 13 4 5 4 4 4 4 5 5 4 3 Power 1 | . 1 . 1 2 2 . 2 1 1 1 1 1 1 1 1 . . Propulsion 2 | . 1 2 2 4 3 3 4 1 2 1 1 . . . . 1 1 Utility 2 | . . . 2 2 4 4 4 . 1 1 1 1 1 2 2 1 . Weapon 3 | 1 1 3 4 4 3 5 2 1 1 1 1 1 1 1 1 1 1 Tool/Special . | . . . . . . . . . . . . . . . . . . Unused Backups 15 | . . . 1 2 1 . 7 1 . . . . . 1 . 1 1 Power 1 | . . . . . . . . 1 . . . . . . . . . Propulsion 4 | . . . . . 1 . 2 . . . . . . . . . 1 Utility 4 | . . . . 1 . . 3 . . . . . . . . . . Weapon 5 | . . . 1 . . . 2 . . . . . . 1 . 1 . Tool/Special 1 | . . . . 1 . . . . . . . . . . . . . Average Slot Usage (%) 94 | . 95 100 98 100 93 98 94 80 81 92 87 81 78 92 89 90 81 Engine 8 | . 12 14 11 11 3 12 12 5 5 5 3 . . . . . . Core 1 | . . . . . 5 1 . 5 5 5 4 5 5 . . . . Reactor 1 | . . . . . . . . . . . 2 5 5 8 8 8 8 Treads 23 | . 28 28 32 33 35 30 29 . . . . . . . . . . Flight 8 | . . . . . . . 2 35 35 35 35 34 30 36 38 39 33 Device 13 | . 11 14 10 11 9 7 9 27 29 28 21 13 17 27 22 26 29 Storage 7 | . 12 14 11 11 9 7 5 . . . . . . . . . . Processor 1 | . . . . . . . . . 4 5 5 5 5 4 6 6 4 Protection 10 | . . . 10 11 12 21 13 . . . 1 5 5 4 4 4 1 Energy Gun 7 | . 14 14 15 11 8 7 5 . . . . . . . . . . Ballistic Gun 7 | . 14 14 6 11 9 7 5 3 . 9 10 5 3 . . . . Peak Build Rating 178 | 4 7 9 20 22 30 44 63 89 76 87 86 98 109 125 149 169 178 Average Rating 48 | 2 6 8 15 20 26 39 54 75 75 86 81 88 99 122 142 144 147 On Entrance 60 | . 4 7 8 20 22 30 44 54 71 76 81 80 89 103 125 131 151 Avg Prop Armor Cover (%) 8 | 35 29 . . . . 4 . . . . . . . 2 6 7 7 Naked Turns . | . . . . . . . . . . . . . . . . . . Heaviest Build 81 | 3 29 30 41 42 42 63 81 32 26 36 46 33 45 52 52 47 47 Greatest Support 120 | 3 40 40 66 66 92 91 120 45 45 45 36 39 48 63 79 76 77 Greatest Overweight (x) 1 | . . . 1 . . . . . . . 1 . . . . . 1 Average Overweight (x) . | . . . . . . . . . . . . . . . . . . Largest Inventory Capacity 25 | 8 15 15 15 15 25 15 15 5 5 5 5 5 5 5 5 5 5 Average Capacity 12 | 5 9 15 15 15 15 15 14 5 5 5 5 5 5 5 5 5 5 Most Carried 16 | 5 8 12 15 15 16 15 15 5 5 5 5 5 5 5 5 5 5 Average Carried 10 | 2 4 8 11 14 14 14 13 4 5 4 4 4 4 4 5 4 4 Final Capacity 15 | 5 15 15 15 15 15 15 5 5 5 5 5 5 5 5 5 5 5 Final Carried 15 | 4 7 8 15 15 15 15 5 5 5 4 5 4 5 5 5 5 4 Class Distribution -------------------- 54% | Mutant 15% | Sprinter 12% | Scavenger-Mutant 7% | Tank 3% | Infiltrator-Sprinter Dominant Class ---------------- Mutant | -10/Materials Scavenger-Mutant | -10/Mines Scavenger-Mutant | -9/Materials Mutant | -9/Mines Mutant | -8/Materials Mutant | -7/Factory Tank | -6/Factory Sprinter | -5/Factory Sprinter | -5/Upper Caves Sprinter | -5/Upper Caves Sprinter | -5/Zhirov Sprinter | -4/Proximity Caves Sprinter | -4/Factory Sprinter | -3/Research Sprinter | -2/Research Ninja | -2/Testing Infiltrator-Sprinter | -1/Access Resources | -11 -10 -10 -9 -9 -8 -7 -6 -5 -5 -5 -5 -4 -4 -3 -2 -2 -1 ----------- Run | Yrd Mat Min Mat Min Mat Fac Fac Fac Upp Upp Zhi Pro Fac Res Res Tes Acc Matter Collected 2792 | 250 82 88 305 123 406 377 410 15 155 13 . 91 98 . 11 167 201 Remotely . | . . . . . . . . . . . . . . . . . . Salvage Created 4462 | . 453 129 1317 152 673 615 1003 . . . . . . 29 . 58 33 Parts 241 | . 20 9 76 15 30 40 51 . . . . . . . . . . Haulers Intercepted 8 | . 2 . 4 . . . 2 . . . . . . . . . . Recyclers Shooed 2 | . . . . . . 2 . . . . . . . . . . . Parts Field Recycled . | . . . . . . . . . . . . . . . . . . Retrieved Matter . | . . . . . . . . . . . . . . . . . . Parts Self-Destructed . | . . . . . . . . . . . . . . . . . . Prevented 3 | . . . . . . . . . . . . 3 . . . . . Parts Restored 1 | . . . . . . . . 1 . . . . . . . . . Broken 1 | . . . . . . . . 1 . . . . . . . . . Kills | -11 -10 -10 -9 -9 -8 -7 -6 -5 -5 -5 -5 -4 -4 -3 -2 -2 -1 ------- Run | Yrd Mat Min Mat Min Mat Fac Fac Fac Upp Upp Zhi Pro Fac Res Res Tes Acc Combat Hostiles Destroyed 85 | . 7 3 27 8 14 16 10 . . . . . . . . . . Guns 72 | . 7 3 23 8 14 16 1 . . . . . . . . . . Cannons 9 | . . . . . . . 9 . . . . . . . . . . AOE 4 | . . . 4 . . . . . . . . . . . . . . Classes Destroyed 14 | . 4 2 5 . . 2 1 . . . . . . . . . . Worker 3 | . . . 1 1 . 1 . . . . . . . . . . . Builder 2 | . . . 1 . . 1 . . . . . . . . . . . Hauler 8 | . 2 . 4 . . . 2 . . . . . . . . . . Recycler 3 | . . . 1 . 1 . 1 . . . . . . . . . . Mechanic 2 | . . . 1 . . . 1 . . . . . . . . . . Operator 2 | . 1 . . . . . . . . . . . . . . 1 . Watcher 10 | . 2 . 4 . . 1 . . . . . . . 1 . 1 1 Swarmer 24 | . . 1 7 8 2 6 . . . . . . . . . . . Grunt 38 | . 7 . 14 . 11 2 4 . . . . . . . . . . Duelist 1 | . . . 1 . . . . . . . . . . . . . . Sentry 10 | . . 2 5 . 1 . 2 . . . . . . . . . . Hunter 2 | . . . . . . 1 1 . . . . . . . . . . Programmer 9 | . . . . . . 7 2 . . . . . . . . . . Heavy 1 | . . . . . . . 1 . . . . . . . . . . Best Kill Streak 8 | . 5 2 8 4 5 4 4 . . . . . . 1 . 1 1 Combat Bots Only 6 | . 4 2 6 4 5 4 4 . . . . . . . . . . Max Kills in Single Turn 5 | . 1 1 5 2 2 1 1 . . . . . . 1 . 1 1 Gunslinging 1 | . . . 1 . 1 . . . . . . . . . . . . Exploded 4 | . . . 4 . . . . . . . . . . . . . . Melee . | . . . . . . . . . . . . . . . . . . Uniques/NPCs Destroyed . | . . . . . . . . . . . . . . . . . . Combat | -11 -10 -10 -9 -9 -8 -7 -6 -5 -5 -5 -5 -4 -4 -3 -2 -2 -1 -------- Run | Yrd Mat Min Mat Min Mat Fac Fac Fac Upp Upp Zhi Pro Fac Res Res Tes Acc Hostile Shots Fired 974 | . 34 33 100 13 58 183 159 15 5 12 . 26 6 . 27 13 290 Missed 403 | . 12 9 31 2 21 49 31 5 4 7 . 13 4 . 11 8 196 Hits 571 | . 22 24 69 11 37 134 128 10 1 5 . 13 2 . 16 5 94 Melee 7 | . . . 7 . . . . . . . . . . . . . . Projectile 564 | . 22 24 62 11 37 134 128 10 1 5 . 13 2 . 16 5 94 AOE 8 | . . 8 . . . . . . . . . . . . . . . Critical Strikes 14 | . 1 1 2 . . 4 2 . . . . 2 . . 1 . 1 Part Disruptions 1 | . . . . . . 1 . . . . . . . . . . . Damage Taken 10109 | . 270 553 985 98 587 1928 2053 346 13 114 . 313 18 73 331 114 2313 Core 1271 | . . 125 154 22 27 108 204 38 . . . 95 . . 29 23 446 Absorbed by Shields 264 | . . . . . . . . . . . . . 12 . . . 252 Redirected to Shielding 406 | . . . . . 31 102 . . . . . 53 . . . 16 204 Ignored by Resistances 140 | . . . . . . 140 . . . . . . . . . . . Regen/Repaired (Parts) 18 | . . . . . . . . . . . . . 18 . . . . Core Remaining (%) 82 | 100 . 50 . 56 95 84 76 . . . . 86 100 100 . 90 72 Volleys Fired 307 | . 51 14 80 11 49 70 28 . . . . 3 . . . . 1 Largest 3 | . 2 2 2 2 2 2 3 . . . . 1 . . . . 1 Hottest 260 | . 70 76 112 79 86 103 260 . . . . 33 . . . . 55 Shots Fired 628 | . 101 28 159 22 98 134 82 . . . . 3 . . . . 1 Gun 569 | . 101 28 153 22 98 134 30 . . . . 3 . . . . . Cannon 57 | . . . 5 . . . 52 . . . . . . . . . . Launcher 2 | . . . 1 . . . . . . . . . . . . . 1 Special . | . . . . . . . . . . . . . . . . . . Kinetic 250 | . 51 14 39 11 49 71 12 . . . . 3 . . . . . Thermal 376 | . 50 14 119 11 49 63 70 . . . . . . . . . . Explosive 2 | . . . 1 . . . . . . . . . . . . . 1 Electromagnetic . | . . . . . . . . . . . . . . . . . . Robot Hit Streak 15 | . 15 12 12 5 14 9 13 . . . . . . . . . . Robot Miss Streak 7 | . 5 2 5 1 3 7 3 . . . . . . . . . . Penetration Max . | . . . . . . . . . . . . . . . . . . Secondary Targets 9 | . . . 4 1 2 2 . . . . . . . . . . . Max Gunslinging Chain 1 | . . . 1 1 1 1 . . . . . . . . . . . Shots Hit Robots 423 | . 66 22 106 13 70 90 49 . . . . . . 2 . 3 2 Core Hits 196 | . 25 11 48 9 30 45 26 . . . . . . . . 1 1 Critical Kills 1 | . . . . . . . 1 . . . . . . . . . . Critical Parts Destroyed 2 | . . . 1 . . . . . . . . . . 1 . . . Critical Strikes 23 | . 4 . 8 1 8 . 1 . . . . . . 1 . . . Burn 20 | . 4 . 7 1 8 . . . . . . . . . . . . Meltdown 1 | . . . . . . . 1 . . . . . . . . . . Destroy 1 | . . . 1 . . . . . . . . . . . . . . Smash 1 | . . . . . . . . . . . . . . 1 . . . Melee Attacks 21 | . . . . . . . . . . . . . . 2 4 11 4 Impact 21 | . . . . . . . . . . . . . . 2 4 11 4 Slashing . | . . . . . . . . . . . . . . . . . . Piercing . | . . . . . . . . . . . . . . . . . . Sneak Attacks . | . . . . . . . . . . . . . . . . . . Combat Hostiles . | . . . . . . . . . . . . . . . . . . Follow-up Attacks . | . . . . . . . . . . . . . . . . . . Damage Inflicted 7891 | . 697 228 1878 261 1194 1743 1487 . . . . . . 94 . 171 138 Guns 6133 | . 697 228 1597 261 1194 1743 413 . . . . . . . . . . Cannons 1145 | . . . 81 . . . 1064 . . . . . . . . . . Explosions 244 | . . . 197 . . . 10 . . . . . . . . . 37 Melee 366 | . . . . . . . . . . . . . . 94 . 171 101 Ramming 3 | . . . 3 . . . . . . . . . . . . . . Kinetic 2134 | . 249 92 310 114 586 641 142 . . . . . . . . . . Thermal 5181 | . 448 136 1368 147 608 1102 1335 . . . . . . . . . 37 Explosive 197 | . . . 197 . . . . . . . . . . . . . . Electromagnetic 10 | . . . . . . . 10 . . . . . . . . . . Impact 366 | . . . . . . . . . . . . . . 94 . 171 101 Slashing . | . . . . . . . . . . . . . . . . . . Piercing . | . . . . . . . . . . . . . . . . . . Highest Corruption 10 | . . . 3 3 . 10 3 . . . . . . . . . . Average Corruption 4 | . . . 3 3 . 6 2 . . . . . . . . . . Corruption Purged . | . . . . . . . . . . . . . . . . . . Corruption Blocked . | . . . . . . . . . . . . . . . . . . Effects 100 | . . . 13 23 . 45 19 . . . . . . . . . . Message Errors 26 | . . . 2 6 . 13 5 . . . . . . . . . . Matter Fused 24 | . . . 1 8 . 10 5 . . . . . . . . . . Heat Flow Errors 16 | . . . 2 5 . 5 4 . . . . . . . . . . Energy Discharges 6 | . . . 2 1 . 3 . . . . . . . . . . . Parts Rejected 1 | . . . . . . . 1 . . . . . . . . . . Parts Fused 2 | . . . . . . 2 . . . . . . . . . . . Data Loss (minor) 12 | . . . 3 2 . 4 3 . . . . . . . . . . Data Loss (major) 3 | . . . 1 . . 2 . . . . . . . . . . . Misfires 5 | . . . . . . 5 . . . . . . . . . . . Alerts 3 | . . . 1 1 . 1 . . . . . . . . . . . Weapon Failures 2 | . . . 1 . . . 1 . . . . . . . . . . Overload Shots . | . . . . . . . . . . . . . . . . . . Overflow Damage 88 | . . . . . . . 16 . . . . . . 30 . 32 10 Projectiles 16 | . . . . . . . 16 . . . . . . . . . . Explosions . | . . . . . . . . . . . . . . . . . . Melee 72 | . . . . . . . . . . . . . . 30 . 32 10 Knockbacks 5 | . . . . . . . . . . . . . . 2 . 2 1 Impact 5 | . . . . . . . . . . . . . . 2 . 2 1 Kinetic . | . . . . . . . . . . . . . . . . . . Secondary . | . . . . . . . . . . . . . . . . . . Self-Inflicted Damage 23 | . . . . . . . 23 . . . . . . . . . . Shots 1 | . . . . . . . 1 . . . . . . . . . . Rammed . | . . . . . . . . . . . . . . . . . . Targets Rammed 2 | . . . 2 . . . . . . . . . . . . . . Kicked . | . . . . . . . . . . . . . . . . . . Crushed 2 | . . . 2 . . . . . . . . . . . . . . Highest Temperature 410 | . 312 32 298 240 11 349 366 42 54 82 . 376 26 44 97 246 410 Average Temperature 67 | . 80 13 72 87 3 65 123 30 22 36 . 142 14 8 36 24 87 Received Heat Transfer 1909 | . 171 63 300 6 288 54 531 18 . 21 . 397 . . 18 9 33 Effects 3 | . . . . . . 1 . . . . . 1 . . . . 1 Shutdowns 2 | . . . . . . . . . . . . 1 . . . . 1 Interference 1 | . . . . . . 1 . . . . . . . . . . . Siege Activations . | . . . . . . . . . . . . . . . . . . Martial Activations . | . . . . . . . . . . . . . . . . . . Shielding Activations . | . . . . . . . . . . . . . . . . . . Robots Disrupted . | . . . . . . . . . . . . . . . . . . Combat Hostiles . | . . . . . . . . . . . . . . . . . . Robots Corrupted 4 | . . . . . . . . . . . . . . 1 . 2 1 Combat Hostiles . | . . . . . . . . . . . . . . . . . . Parts Fried 5 | . . . . . . . . . . . . . . 1 . 3 1 Impact Corruptions 4 | . . . . . . . . . . . . . . 1 . 2 1 Robots Melted 1 | . . . . . . . 1 . . . . . . . . . . Combat Hostiles . | . . . . . . . . . . . . . . . . . . Parts Melted 31 | . 4 1 14 2 2 6 2 . . . . . . . . . . Heat Transferred 12243 | . 1554 370 3737 370 1850 2242 2070 . . . . . . . . . 50 Parts Sabotaged . | . . . . . . . . . . . . . . . . . . Parts Stolen . | . . . . . . . . . . . . . . . . . . Parts Stripped . | . . . . . . . . . . . . . . . . . . Power Chain Reactions . | . . . . . . . . . . . . . . . . . . Alert | -11 -10 -10 -9 -9 -8 -7 -6 -5 -5 -5 -5 -4 -4 -3 -2 -2 -1 ------- Run | Yrd Mat Min Mat Min Mat Fac Fac Fac Upp Upp Zhi Pro Fac Res Res Tes Acc Maximum Alert Level 3 | . . . 1 . . . 1 1 . . . . . . . . 3 Low Security (%) 90 | 100 100 100 84 100 100 100 80 60 . . . . 100 100 100 100 38 Level 1 6 | . . . 15 . . . 19 39 . . . . . . . . 15 Level 2 3 | . . . . . . . . . . . . . . . . . 45 Level 3 . | . . . . . . . . . . . . . . . . . 1 Level 4 . | . . . . . . . . . . . . . . . . . . Level 5 . | . . . . . . . . . . . . . . . . . . High Security . | . . . . . . . . . . . . . . . . . . Max Security . | . . . . . . . . . . . . . . . . . . Peak Influence 701 | . 102 35 300 178 180 155 316 304 . . . . 75 18 32 45 701 Initial 151 | . . 11 . 76 45 23 44 151 . . . . 75 18 8 . 20 Average 82 | . 24 4 99 54 63 81 60 187 . . . . 13 2 12 10 345 Influence Increases 5366 | . 279 75 830 302 453 520 554 419 90 . . 150 116 37 45 130 1366 Destroy 0b10 Robot/C 1780 | . 140 60 540 240 280 320 200 . . . . . . . . . . Destroy 0b10 Robot/NC 150 | . 25 . 60 5 5 15 20 . . . . . . 5 . 10 5 Destroy Leader 436 | . 38 . 136 30 50 102 74 . . . . . . 2 . 2 2 Allied During Kill 27 | . . . . 27 . . . . . . . . . . . . . Successful Hack 307 | . 31 . 36 . 24 5 14 59 . . . . 26 . 24 40 48 Disable Machine 120 | . . . . . . . 75 . . . . . . . . 30 15 Destroy Structure 176 | . . . 13 . 4 3 66 . . . . . . . 6 3 81 Partial Spotted 270 | . . . . . . . . 120 . . . . 45 30 15 15 45 Lose Combat Pursuer 2100 | . 45 15 45 . 90 75 105 240 90 . . 150 45 . . 30 1170 Influence Decreases 4665 | . 249 105 634 380 519 482 334 479 153 106 81 30 201 57 60 95 700 Entered New Map 740 | . . 19 . 120 73 29 46 159 93 36 81 . 45 17 7 . 15 Time Decay 2754 | . 249 86 424 260 293 393 258 100 60 50 . 10 91 40 40 95 305 Search Patrol Dispatched 100 | . . . . . . . . . . . . . . . . . 100 Lost Part 523 | . . . 60 . 20 60 30 70 . 20 . 20 . . 13 . 230 Lost Ally 50 | . . . . . . . . . . . . . . . . . 50 Purge Threat 498 | . . . 150 . 133 . . 150 . . . . 65 . . . . Squads Dispatched 37 | . 2 . 4 . 2 7 5 3 . . . . 3 2 . 2 7 Investigation 6 | . . . 2 . 2 . . 1 . . . . 1 . . . . Extermination 17 | . . . . . . 5 3 1 . . . . 1 1 . 1 5 Reinforcement 13 | . 2 . 2 . . 1 2 1 . . . . 1 1 . 1 2 Assault . | . . . . . . . . . . . . . . . . . . Garrison 1 | . . . . . . 1 . . . . . . . . . . . Intercept . | . . . . . . . . . . . . . . . . . . Searches Triggered 1 | . . . . . . . . . . . . . . . . . 1 Construction Impeded . | . . . . . . . . . . . . . . . . . . Haulers Reinforced 1 | . . . . . . . 1 . . . . . . . . . . Active Scanning Responses . | . . . . . . . . . . . . . . . . . . Cargo Convoy Interrupts . | . . . . . . . . . . . . . . . . . . Stealth | -11 -10 -10 -9 -9 -8 -7 -6 -5 -5 -5 -5 -4 -4 -3 -2 -2 -1 --------- Run | Yrd Mat Min Mat Min Mat Fac Fac Fac Upp Upp Zhi Pro Fac Res Res Tes Acc Distress Signals 13 | . . . 3 . 1 1 . 1 . . . 1 1 . . . 5 Communications Jammed 64 | . . . . . . . . . . . . . . . 14 7 43 Distress Signals 33 | . . . . . . . . . . . . . . . 14 7 12 Times Spotted 308 | . 20 7 38 11 21 27 22 19 6 4 . 14 2 4 9 13 91 Peak Tracking Total 21 | . 6 3 5 4 5 4 7 10 8 4 . 16 7 2 11 8 21 Tactical Retreats 46 | . 2 1 2 . 5 3 2 4 2 . . 2 1 . . 1 21 Traps | -11 -10 -10 -9 -9 -8 -7 -6 -5 -5 -5 -5 -4 -4 -3 -2 -2 -1 ------- Run | Yrd Mat Min Mat Min Mat Fac Fac Fac Upp Upp Zhi Pro Fac Res Res Tes Acc Traps Triggered 20 | . . . 2 . 2 2 2 3 . . . . 1 2 . 1 5 Indirectly . | . . . . . . . . . . . . . . . . . . Trap Hack Attempts . | . . . . . . . . . . . . . . . . . . Triggered . | . . . . . . . . . . . . . . . . . . Disarmed . | . . . . . . . . . . . . . . . . . . Reprogrammed . | . . . . . . . . . . . . . . . . . . Reused . | . . . . . . . . . . . . . . . . . . Traps Extracted . | . . . . . . . . . . . . . . . . . . Installed . | . . . . . . . . . . . . . . . . . . Triggered . | . . . . . . . . . . . . . . . . . . Most Traps Carried 2 | . . . . 2 2 . . . . . . . . . . . . Machines | -11 -10 -10 -9 -9 -8 -7 -6 -5 -5 -5 -5 -4 -4 -3 -2 -2 -1 ---------- Run | Yrd Mat Min Mat Min Mat Fac Fac Fac Upp Upp Zhi Pro Fac Res Res Tes Acc Machines Disabled 9 | . . . . . . . 5 . . . . 1 . . . 2 1 Max in Single Turn 3 | . . . . . . . 3 . . . . 1 . . . 1 1 Energy Cycler 1 | . . . . . . . . . . . . . . . . . 1 Machines Repaired . | . . . . . . . . . . . . . . . . . . Machines Dismantled . | . . . . . . . . . . . . . . . . . . Machines Sabotaged . | . . . . . . . . . . . . . . . . . . Overloaded Fab Kills . | . . . . . . . . . . . . . . . . . . Hacking | -11 -10 -10 -9 -9 -8 -7 -6 -5 -5 -5 -5 -4 -4 -3 -2 -2 -1 --------- Run | Yrd Mat Min Mat Min Mat Fac Fac Fac Upp Upp Zhi Pro Fac Res Res Tes Acc Machines Accessed 85 | . 3 . 9 . 5 9 3 8 2 . 9 1 9 5 2 7 13 Terminals 49 | . 3 . 9 . 5 4 1 4 . . . 1 5 2 . 5 10 Fabricators 7 | . . . . . . 3 1 1 . . . . 1 . . 1 . Repair Stations 2 | . . . . . . . . 1 . . . . 1 . . . . Recycling Units 5 | . . . . . . . 1 . . . . . 1 2 . . 1 Scanalyzers 5 | . . . . . . . . 2 . . . . . 1 1 1 . Garrison Access 6 | . . . . . . 2 . . . . . . 1 . 1 . 2 Total Hacks 209 | . 8 . 26 . 13 17 7 17 5 . 48 1 19 9 5 13 21 Successful 106 | . 6 . 14 . 7 4 3 6 5 . 48 1 4 . 2 4 2 Failed 102 | . 2 . 11 . 6 13 4 11 . . . . 15 9 3 9 19 Catastrophic 20 | . . . 1 . . 4 . 5 . . . . 3 2 . 4 1 Database Lockouts 1 | . . . 1 . . . . . . . . . . . . . . Manual 44 | . 8 . 11 . 9 4 . 7 . . . 2 3 . . . . Terminals 110 | . 8 . 26 . 13 9 2 10 . . . 1 11 3 . 11 16 Fabricators 10 | . . . . . . 5 1 1 . . . . 2 . . 1 . Repair Stations 6 | . . . . . . . . 4 . . . . 2 . . . . Recycling Units 12 | . . . . . . . 4 . . . . . 1 5 . . 2 Scanalyzers 7 | . . . . . . . . 2 . . . . . 1 3 1 . Garrison Access 11 | . . . . . . 3 . . . . . . 3 . 2 . 3 Terminal Hacks 92 | . 6 . 14 . 7 2 1 3 5 . 48 1 1 . . 2 2 Record 41 | . . . 1 . . . . . 4 . 36 . . . . . . Part Schematic 4 | . . . . . . . . . . . 4 . . . . . . Robot Analysis 14 | . 4 . 5 . 1 . . . . . 4 . . . . . . Prototype ID Bank 4 | . . . . . . . . . . . 4 . . . . . . Open Door 2 | . . . . . . . . . 1 . . 1 . . . . . Branch Access Points 4 | . 1 . . . 1 . . 1 . . . . . . . 1 . Emergency Access Points 2 | . . . 1 . . . . . . . . . . . . . 1 Alert Level 1 | . . . 1 . . . . . . . . . . . . . . Unreport Threat 4 | . . . 1 . 1 . . 1 . . . . 1 . . . . Locate Traps 8 | . 1 . . . 3 1 1 1 . . . . . . . . 1 Investigation Status 1 | . . . 1 . . . . . . . . . . . . . . Recall Reinforcements 1 | . . . 1 . . . . . . . . . . . . . . Hauler Manifests 1 | . . . 1 . . . . . . . . . . . . . . Registered Components 2 | . . . 1 . 1 . . . . . . . . . . . . Zone Layout 2 | . . . 1 . . 1 . . . . . . . . . . . Protovariant Controls 1 | . . . . . . . . . . . . . . . . 1 . Fabricator Hacks 5 | . . . . . . 2 1 . . . . . 1 . . 1 . Network Status 5 | . . . . . . 2 1 . . . . . 1 . . 1 . Repair Station Hacks 3 | . . . . . . . . 1 . . . . 2 . . . . Scan Component 2 | . . . . . . . . 1 . . . . 1 . . . . Repair 1 | . . . . . . . . . . . . . 1 . . . . Recycling Unit Hacks 1 | . . . . . . . 1 . . . . . . . . . . Report Inventory 1 | . . . . . . . 1 . . . . . . . . . . Scanalyzer 5 | . . . . . . . . 2 . . . . . . 2 1 . Retrieve Study 5 | . . . . . . . . 2 . . . . . . 2 1 . Garrison Access Hacks . | . . . . . . . . . . . . . . . . . . Unauthorized Hacks . | . . . . . . . . . . . . . . . . . . Terminals . | . . . . . . . . . . . . . . . . . . Fabricators . | . . . . . . . . . . . . . . . . . . Repair Stations . | . . . . . . . . . . . . . . . . . . Recycling Units . | . . . . . . . . . . . . . . . . . . Scanalyzers . | . . . . . . . . . . . . . . . . . . Garrison Access . | . . . . . . . . . . . . . . . . . . Data Cores Recovered 1 | . . . . . . . . . . . . . . . . 1 . Used . | . . . . . . . . . . . . . . . . . . Hacking Detections 69 | . 2 . 8 . 5 9 2 8 . . . . 8 5 2 7 13 Full Trace Events 2 | . . . . . . . . 1 . . . . 1 . . . . Feedback Events . | . . . . . . . . . . . . . . . . . . Feedback Blocked . | . . . . . . . . . . . . . . . . . . Robot Schematics Acquired . | . . . . . . . . . . . . . . . . . . Robots Built . | . . . . . . . . . . . . . . . . . . Authchips . | . . . . . . . . . . . . . . . . . . Time . | . . . . . . . . . . . . . . . . . . Total Robot Build Rating . | . . . . . . . . . . . . . . . . . . Part Schematics Acquired 4 | . . . . . . . . . . . 4 . . . . . . Parts Built . | . . . . . . . . . . . . . . . . . . Authchips . | . . . . . . . . . . . . . . . . . . Time . | . . . . . . . . . . . . . . . . . . Total Part Build Rating . | . . . . . . . . . . . . . . . . . . Part Studies Acquired 5 | . . . . . . . . 2 . . . . . . 2 1 . Parts Repaired 1 | . . . . . . . . . . . . . 1 . . . . Time 40 | . . . . . . . . . . . . . 40 . . . . Parts Recycled . | . . . . . . . . . . . . . . . . . . Recycled Matter . | . . . . . . . . . . . . . . . . . . Retrieved Matter . | . . . . . . . . . . . . . . . . . . Retrieved Components . | . . . . . . . . . . . . . . . . . . Parts Scanalyzed . | . . . . . . . . . . . . . . . . . . Part Schematics Acquired . | . . . . . . . . . . . . . . . . . . Parts Damaged . | . . . . . . . . . . . . . . . . . . Bothacking | -11 -10 -10 -9 -9 -8 -7 -6 -5 -5 -5 -5 -4 -4 -3 -2 -2 -1 ------------ Run | Yrd Mat Min Mat Min Mat Fac Fac Fac Upp Upp Zhi Pro Fac Res Res Tes Acc Used RIF Installer . | . . . . . . . . . . . . . . . . . . Robots Hacked . | . . . . . . . . . . . . . . . . . . Non-combat . | . . . . . . . . . . . . . . . . . . Combat . | . . . . . . . . . . . . . . . . . . Robot Hacks Applied . | . . . . . . . . . . . . . . . . . . Relay Couplers Released 4 | . . . . . . 4 . . . . . . . . . . . Programmers 4 | . . . . . . 4 . . . . . . . . . . . Fabnet Peak Effective % . | . . . . . . . . . . . . . . . . . . Robots Rewired . | . . . . . . . . . . . . . . . . . . Allies Hacked . | . . . . . . . . . . . . . . . . . . Hacks Repelled . | . . . . . . . . . . . . . . . . . . Allies | -11 -10 -10 -9 -9 -8 -7 -6 -5 -5 -5 -5 -4 -4 -3 -2 -2 -1 -------- Run | Yrd Mat Min Mat Min Mat Fac Fac Fac Upp Upp Zhi Pro Fac Res Res Tes Acc Total Allies 3 | . . . . 3 . . . . . . . . . . . . . Largest Group 3 | . . . . 3 2 . . . . . . . . . . . . Highest-Rated Group 40 | . . . . 40 21 . . . . . . . . . . . . Highest-Rated Ally 16 | . . . . 16 13 . . . . . . . . . . . . Total Orders . | . . . . . . . . . . . . . . . . . . Ally Attacks 22 | . . . . 21 1 . . . . . . . . . . . . Total Damage 162 | . . . . 162 . . . . . . . . . . . . . Kills 4 | . . . . 4 . . . . . . . . . . . . . Allies Corrupted . | . . . . . . . . . . . . . . . . . . Allies Melted . | . . . . . . . . . . . . . . . . . . Intel | -11 -10 -10 -9 -9 -8 -7 -6 -5 -5 -5 -5 -4 -4 -3 -2 -2 -1 ------- Run | Yrd Mat Min Mat Min Mat Fac Fac Fac Upp Upp Zhi Pro Fac Res Res Tes Acc Active Infowar (turns) 1679 | . . . . . . . . . . . . . 241 348 89 289 712 Sensors 1676 | . . . . . . . . . . . . . 240 348 89 287 712 Terrain 488 | . . . . . . . . . . . . . . . . 236 252 Seismic 360 | . . . . . . . . . . . . . . 340 20 . . Cloaking 464 | . . . . . . . . . . . . . . . . . 464 Jamming 1594 | . . . . . . . . . . . . . 156 348 89 289 712 Robot Analysis Total 14 | . 4 . 5 . 1 . . . . . 4 . . . . . . Derelict Logs Recovered 5 | . . . . 2 . . . . 2 1 . . . . . . . Drone Launches 6 | . . . . . . . . . . . . . . . . . 6 Drone Recoveries 1 | . . . . . . . . . . . . . . . . . 1 Exploration | -11 -10 -10 -9 -9 -8 -7 -6 -5 -5 -5 -5 -4 -4 -3 -2 -2 -1 ------------- Run | Yrd Mat Min Mat Min Mat Fac Fac Fac Upp Upp Zhi Pro Fac Res Res Tes Acc Turns Passed 10244 | 31 777 562 1376 1036 945 2203 960 217 127 107 53 108 301 348 89 292 712 Spaces Moved 12655 | 35 456 282 632 604 437 1177 695 832 582 483 162 425 1006 1100 292 792 2663 Core 148 | 35 113 . . . . . . . . . . . . . . . . Treads 3920 | . 343 282 632 604 437 1177 445 . . . . . . . . . . Legs . | . . . . . . . . . . . . . . . . . . Wheels . | . . . . . . . . . . . . . . . . . . Hover . | . . . . . . . . . . . . . . . . . . Flight 8587 | . . . . . . . 250 832 582 483 162 425 1006 1100 292 792 2663 Fastest Speed 12 | 50 50 160 160 160 160 165 26 12 12 12 23 19 20 15 16 13 12 Average Speed 65 | 50 132 160 160 160 162 165 111 22 21 21 23 22 23 19 22 22 20 Slowest Speed 240 | 50 160 160 240 160 165 167 163 25 22 23 95 24 24 22 25 25 99 Overloaded Moves 347 | . . . . . . . . 13 42 51 . 107 70 64 . . . Propulsion Burnouts . | . . . . . . . . . . . . . . . . . . Robots Hopped 75 | . . . . . . . . 12 . 4 . 1 5 4 1 4 44 Potential Cave-ins 2 | . . . . . . . . . . . . . . . 2 . . Cave-ins Triggered . | . . . . . . . . . . . . . . . . . . Teleports 1 | . . . . . . . . . . . . . . . . 1 . Exploration Rate (%) 47 | 3 82 41 56 99 46 33 21 24 65 66 62 46 26 16 9 87 72 Regions Visited 17 Branch Regions 7 Pre-discovered Areas 3 | . . . . . . . . . . . 3 . . . . . . Known Exits Taken 8 | . 1 . . . 1 . . 1 . . . 1 1 1 1 1 . Unknown Exits Taken 9 | 1 . 1 1 1 . 1 1 . 1 1 1 . . . . . . Scrap Searched 6 | . . . . 1 . . . . 2 2 . 1 . . . . . Spaces Dug 5 | . . . . . . . . . . . . . . . 4 1 . Terrain Destroyed 131 | . . . 7 . . . 85 . . . . . . . 4 1 34 Melee 5 | . . . . . . . . . . . . . . . 4 1 . Projectile 13 | . . . . . . . 13 . . . . . . . . . . AOE 113 | . . . 7 . . . 72 . . . . . . . . . 34 Terrain Rammed . | . . . . . . . . . . . . . . . . . . Walls Destroyed . | . . . . . . . . . . . . . . . . . . Machines Disabled . | . . . . . . . . . . . . . . . . . . Actions | -11 -10 -10 -9 -9 -8 -7 -6 -5 -5 -5 -5 -4 -4 -3 -2 -2 -1 --------- Run | Yrd Mat Min Mat Min Mat Fac Fac Fac Upp Upp Zhi Pro Fac Res Res Tes Acc Total 13904 | 48 537 367 834 655 583 1293 823 844 583 481 176 433 1062 1224 309 881 2771 Wait 525 | . 16 59 72 28 45 15 12 1 . . . 2 44 116 3 47 65 Move 12499 | 34 455 281 631 603 436 1176 694 807 581 475 161 422 996 1092 289 783 2583 Hop 63 | . . . . . . . . 12 . 3 . 1 4 3 1 4 35 Pick Up 120 | 8 8 5 21 5 10 12 16 6 . . 2 . 4 2 . 6 15 Fast Attach 56 | . . . 1 . 5 . 8 8 1 2 4 1 5 4 2 6 9 Attach 62 | 5 3 2 9 . 1 8 2 5 . 1 1 1 2 . . 4 18 Detach 5 | 1 . . . . . . . . . . . 1 . . . 1 2 Swap 86 | . 2 4 10 2 15 6 24 4 . . 1 1 2 2 5 5 3 Drop 123 | . 2 2 8 6 22 6 39 1 . . 5 . 5 3 5 11 8 Fire 307 | . 51 14 80 11 49 70 28 . . . . 3 . . . . 1 Melee 21 | . . . . . . . . . . . . . . 2 4 11 4 Ram . | . . . . . . . . . . . . . . . . . . Kick . | . . . . . . . . . . . . . . . . . . Crush 2 | . . . 2 . . . . . . . . . . . . . . Escape Stasis 27 | . . . . . . . . . . . . . . . . . 27 Rewire 7 | . . . . . . . . . 1 . 2 1 . . . 3 . Trap . | . . . . . . . . . . . . . . . . . . Miscellaneous 1 | . . . . . . . . . . . . . . . . . 1 Route ------- -11/Scrapyard -10/Materials (discovered 5 exits: *Mat x3 / *Min x2) -10/Mines (discovered 2 exits: *Mat / [*Sub]) -9/Materials (discovered 3 exits: *Mat x2 / [*Min]) -9/Mines (discovered 3 exits: *Mat x2 / [*Zio]) -8/Materials (discovered 2 exits: *Fac x2) -7/Factory (discovered 2 exits: *Fac / Low) -6/Factory -5/Factory (discovered 2 exits: *Upp x2) -5/Upper Caves -5/Upper Caves (discovered 2 exits: *Fac / *Zhi) -5/Zhirov -4/Proximity Caves -4/Factory (discovered 3 exits: *Res x2 / Upp) -3/Research -2/Research -2/Testing -1/Access To Epsilon Eridani History --------- Turn | Location | Event 17 | -11/Scrapyard | Discovered new exit (range 16) 32 | -11/Scrapyard | Entered Materials 244 | -10/Materials | Discovered new exit (range 11) 303 | -10/Materials | Build established: Mutant 566 | -10/Materials | Discovered new exit (range 16) 590 | -10/Materials | Identified exit to Mines 798 | -10/Materials | Discovered new exit (range 15) 809 | -10/Materials | Entered Mines 858 | -10/Mines | Met a Derelict bent on vengeance 1019 | -10/Mines | Discovered new exit (range 9) 1020 | -10/Mines | Assembled infested the area 1179 | -10/Mines | Build established: Scavenger-Mutant 1197 | -10/Mines | Discovered new exit (range 11) 1371 | -10/Mines | Entered Materials 1371 | -9/Materials | Evolved 2 slots: Propulsion x1, Utility x1 1539 | -9/Materials | Lost 4 parts (2n1u1w) 1739 | -9/Materials | Discovered new exit (range 17) 1927 | -9/Materials | Discovered new exit (range 5) 2472 | -9/Materials | Discovered new exit (range 8) 2498 | -9/Materials | Build established: Mutant 2572 | -9/Materials | Central database locked down 2747 | -9/Materials | Entered Mines 2754 | -9/Mines | Assisted by bots powering up and referring to "LRC-V3" 3033 | -9/Mines | Found a hidden stash of uninstalled traps 3112 | -9/Mines | Discovered new exit (range 14) 3251 | -9/Mines | A Derelict revealed a hidden shortcut to a safe place 3279 | -9/Mines | Discovered new exit (range 15) 3783 | -9/Mines | Entered Materials 3783 | -8/Materials | Accompanied by 2 allies 3783 | -8/Materials | Evolved 2 slots: Propulsion x1, Utility x1 3784 | -8/Materials | Identified exit to Factory 4694 | -8/Materials | Discovered exit to Factory (range 15) 4728 | -8/Materials | Entered Factory 4728 | -7/Factory | Evolved 2 slots: Power x1, Utility x1 4729 | -7/Factory | Identified exit to Lower Caves 5395 | -7/Factory | Lost 3 parts (1p2u) 5937 | -7/Factory | Garrison activated, responded to threat 6391 | -7/Factory | Discovered new exit (range 14) 6584 | -7/Factory | System corruption reached 10% 6931 | -7/Factory | Entered another Factory area 6931 | -6/Factory | Evolved 2 slots: Propulsion x1, Weapon x1 7243 | -6/Factory | Build established: Tank 7716 | -6/Factory | Lost 3 parts (1p2u) 7873 | -6/Factory | Discovered new exit (range 13) 7891 | -6/Factory | Entered another Factory area 7891 | -5/Factory | Evolved 2 slots: Propulsion x1, Utility x1 8085 | -5/Factory | Lost 4 parts (1p1n2w) 8085 | -5/Factory | Identified exit to Upper Caves 8108 | -5/Factory | Entered Upper Caves 8149 | -5/Upper Caves | Build established: Sprinter 8176 | -5/Upper Caves | Attracted the attention of an 0b10 outpost 8181 | -5/Upper Caves | Attracted the attention of an 0b10 checkpoint 8188 | -5/Upper Caves | Learned location of 1 exit from Proximity Caves 8206 | -5/Upper Caves | Learned 8 Factory zone layouts 8210 | -5/Upper Caves | Entered an active Warlord outpost 8213 | -5/Upper Caves | Learned Armory stockpile data 8213 | -5/Upper Caves | Learned Armory trap positions 8220 | -5/Upper Caves | Discovered new exit (range 9) 8235 | -5/Upper Caves | Entered another Upper Caves area 8258 | -5/Upper Caves | Discovered new exit (range 3) 8319 | -5/Upper Caves | Spotted B-75 Beast 8334 | -5/Upper Caves | Attracted the attention of an 0b10 checkpoint 8338 | -5/Upper Caves | Discovered new exit (range 6) 8342 | -5/Upper Caves | Entered Zhirov 8342 | -5/Zhirov | Discovered new exit (range 3) 8351 | -5/Zhirov | Learned location of Quarantine (-3) 8351 | -5/Zhirov | Learned location of Testing (-2) 8351 | -5/Zhirov | Learned location of Command (-1) 8360 | -5/Zhirov | Found Alien Artifact 8384 | -5/Zhirov | Identified Integrated Reactor 8384 | -5/Zhirov | Installed Integrated Reactor, increased core energy generation (+10) 8385 | -5/Zhirov | Found Alien Artifact 8395 | -5/Zhirov | Entered Proximity Caves 8396 | -4/Proximity Caves | Identified exit to Factory 8420 | -4/Proximity Caves | Acquired the password to a Derelict Tinkerer's latest research 8428 | -4/Proximity Caves | Found Prototype Special Weapon 8428 | -4/Proximity Caves | Identified Molecular Deconstructor 8485 | -4/Proximity Caves | Spotted B-86 Titan 8492 | -4/Proximity Caves | Snuck into a huge 0b10 base via the rear entrance 8503 | -4/Proximity Caves | Entered Factory 8503 | -4/Factory | Evolved 2 slots: Propulsion x1, Utility x1 8504 | -4/Factory | Identified exit to Upper Caves 8505 | -4/Factory | Identified exit to Research 8638 | -4/Factory | Repaired Biomechanical Wings 8804 | -4/Factory | Entered Research 8804 | -3/Research | Evolved 2 slots: Propulsion x1, Utility x1 8893 | -3/Research | Found Prototype Launcher 9144 | -3/Research | Discovered new exit (range 9) 9152 | -3/Research | Identified exit to Research 9152 | -3/Research | Entered another Research area 9152 | -2/Research | Evolved 2 slots: Propulsion x1, Utility x1 9239 | -2/Research | Discovered new exit (range 16) 9241 | -2/Research | Identified exit to Testing 9241 | -2/Research | Entered Testing 9410 | -2/Testing | Found Prototype Device 9410 | -2/Testing | Identified Exp. EM Shield 9416 | -2/Testing | Spotted Striker 9419 | -2/Testing | Found Prototype Device 9419 | -2/Testing | Identified Exp. Thermal Shield 9430 | -2/Testing | Spotted Striker 9431 | -2/Testing | Identified Transdimensional Reconstructor 9431 | -2/Testing | Warped through subspace 9497 | -2/Testing | Spotted PY-DRA4H7MUUT 9523 | -2/Testing | Discovered new exit (range 16) 9528 | -2/Testing | Found Prototype Launcher 9529 | -2/Testing | Identified Gui. Micro-nuke Launcher 9532 | -2/Testing | Identified exit to Access 9533 | -2/Testing | Entered Access 9533 | -1/Access | Evolved 2 slots: Power x1, Utility x1 9615 | -1/Access | Energy Cycler disabled 9879 | -1/Access | Spotted B-99 Colossus 10015 | -1/Access | Lost 14 parts (1p10n3u) 10017 | -1/Access | Found Prototype Device 10018 | -1/Access | Identified Exp. Shock Absorption System 10033 | -1/Access | Search patrols dispatched 10243 | -1/Access | Discovered new exit (range 6) 10244 | -1/Access | Identified exit to Surface 10245 | *** | Escaped! Last Messages --------------- 10214_ Slug penetrates S-43 Plague. 10219_ Exp. Shock Absorption System destroyed. 10221_ Penetrated by Slug. 10221_ Slug penetrates Wall. 10222_ Penetrated by Slug. 10222_ Lgt. Quantum Reactor destroyed. 10222_ U-05 Engineer knocked back. 10222_ Drone system corrupted by crushing effect. 10222_ Drone destroyed. 10226_ K-01 Serf destroyed. 10226_ Acquired 10 matter. 10227_ K-01 Serf collects debris. 10227_ Acquired 24 matter. 10231_ K-01 Serf cleans the Terminal. 10232_ Connecting with Terminal... 10235_ O-32 Director: "IFF HANDSHAKE FAILED. SECURING TERMINAL." 10239_ Connecting with Terminal... 10243_ The Access Shell folds into the floor. 10243_ EXIT=FOUND 10244_ EXIT=IDENTIFIED: SURFACE Map ----- +----------------------------------------------------+ | # #???????????????????# # # | | # #???????????????????# " + / | | # #???????????????????# """ # # | | # #???????????????????# """ # # | | # #???????????????????# " ?# # | | # #???????????????????? ?# # ""T"" | | # +???????????????????? ]??# # """"" | | # # ???????????????????#######??# ########## | | ### # ??????????????????########## ########## | | ??# #? ??????????????????# # # # | | ??# #?? ?????????????????# # # ] # | | ??# #??##????????????????# "" # # # | | ??# #????????????????????# "" # # # | | ??? +????????????????????# "T #u # # | | ??? ?????????????????????# "" # # # | | ????????????????????????????# "" + + ==! # | | ????????????????????????????# # # ==! # | | ????????????????????????????# ! # # =!! # | | ????????????????????????????########## ########## | | ?????????????????????????????###?????# #????????? | | ????????????????????########## ####### #????????? | | ????????????????????" #????????? | | ??????????????BB????" t #????????? | | ??????????????BB????" #????????? | | ????????????????????" #????????? | | ????????????????????" "@ #????????? | | ????????????????????" "" #????????? | | ????????????????????" #????????? | | ??????????????BB????" #????????? | | ??????????????BB????" """ """ #????????? | | ????????????????????" """T"""R #????????? | | ????????????????????########## ####### #????????# | | ?????????????????????????????###?????? #????????# | | ?????????????????????????????????????? #????????# | | ?????????????????????????????????????? #????????# | | ?????????????????????????????????????? #????????# | | ?????????????????????????????????????? #????????# | | ????????????????????????????????????????#????????# | | ?????????????????????????????????????????????????# | | ?????????????????????????????????????????????????# | | ?????????????????????????????????????????????????# | | ?????????????????????????????????????????????????# | | ?????????????????????????????????????????????????# | | ?????????????????????????????????????????????????# | | ?????????????????????????????????????????????????# | | ?????????????????????????????????????????????????? | | ?????????????????????????????????????????????????? | | ?????????????????????????????????????????????????? | | ?????????????????????????????????????????????????? | | ?????????????????????????????????????????????????? | +----------------------------------------------------+ Best States ------------- Heat Dissipation 73 Energy Generation 65 Energy Capacity 530 Matter Stores 300 Matter Capacity 300 Sight Range 16 Robot Scan Range 18 Terrain Scan Range 24 Terrain Scan Density 10 Jamming Range 12 Cloak Strength 3 Power Amplification 30 Additional Mass Support 9 Base Temperature (-) 200 Armor Coverage 450 Resistance: KI 20 Resistance: TH 15 Resistance: EX 75 Resistance: EM 15 Propulsion Shielding 90 Utility Shielding 66 Point Defense Rating 80 Evasion (%) 79 Recoil Reduction 5 Item Schematics ----------------- Assault Drone Bay | -5/Zhirov | Free Exp. Heat Sink | -5/Zhirov | Free Exp. Optical Array | -5/Zhirov | Free Imp. Arc Thrower | -5/Zhirov | Free Robot Schematics ------------------ None Fabricated ------------ Nothing Repaired ---------- Biomechanical Wings | 10% | -4/Factory Studied --------- Lgt. Angular Momentum Engine | -5/Factory | Hacked Lrn. Missile Launcher | -5/Factory | Hacked Xenon Bombardment Thruster | -2/Research | Hacked Field Propulsion Drive | -2/Research | Hacked Mic. Antimatter Reactor | -2/Testing | Hacked Alien Tech Used ----------------- Integrated Reactor Transdimensional Reconstructor Achievements -------------- Botjacking Explosive Keycard Thread The Needle Around The Corner Challenges ------------ None Game ------ Seed SlugTrackerDynamite Manual? 0 Play Time 02:41:13 Cumulative 223.5 hours Start 2026.09.13 @ 14:28:15 End 2026.09.13 @ 17:11:45 Sessions 1 Manual Loads 0 Difficulty Rogue Special Mode None Game No. 353 Rogue 350 Adventurer 3 Explorer 0 Win Type 0 Total 2 Types 2/0/0/0/0/0/0/0/0/0 Lore% 67 Gallery% 57 Achievement% 34 Wizard Run 0 Options --------- Layout 0 ASCII 0 Keyboard 0 Movement Mouse Keybinds 0 Fullscreen 2 Font 18/SmallcapsGlow Map View 76x50 Zoom Use 0% Tactical HUD 1 Map Filters NONE Filters NONE Steam 1 RUN: 1bfca0c7-f374-4373-a37d-85d494f20d12